bitfinex-derivatives/quotes_ETHF0:USTF0_20240915
["timestamp","ask_amount","ask_price","bid_price","bid_amount"]
[1726404528344,0.3813,2411.4,2411.3,5.04570788]
[1726404528742,0.3813,2411.4,2411.3,5.04569453]
[1726404529337,0.3813,2411.4,2411.3,6.08283721]
[1726404529841,0.3813,2411.4,2411.3,4.39747859]
[1726404530044,0.3813,2411.4,2411.3,6.08283505]
[1726404531248,0.3813,2411.4,2411.3,6.6014107]
[1726404531845,0.3813,2411.4,2411.3,10.26455599]
[1726404532147,0.3813,2411.4,2411.3,6.6014107]
[1726404532349,0.3813,2411.4,2411.3,10.26545553]
[1726404533352,0.3813,2411.4,2411.3,8.06152342]
[1726404533548,0.80736,2411.6,2411.3,10.12837865]
[1726404533750,0.80736,2411.6,2411.5,1.62729176]
[1726404533950,1.21446,2411.6,2411.5,4.10722594]
[1726404535658,0.7999,2411.6,2411.5,4.10722594]
[1726404536744,0.7999,2411.6,2411.5,3.45902507]
[1726404537051,0.7999,2411.6,2411.5,4.10722695]
[1726404537263,0.7999,2411.6,2411.5,4.10750922]
[1726404539654,0.7999,2411.6,2411.5,4.10748783]
[1726404540153,0.7999,2411.6,2411.5,4.10748478]
[1726404541848,1.21445,2411.6,2411.5,4.10748478]
[1726404542049,1.21445,2411.6,2411.5,2.48019302]
[1726404542249,0.41457,2411.5,2411.4,1.62729176]
[1726404542452,0.80387,2411.5,2411.4,1.83177023]
[1726404542648,0.80387,2411.5,2411.3,1.62729176]
[1726404543846,3.62239,2411.4,2411.3,1.62729176]
[1726404544052,1.03656,2411.2,2411.0,1.72429176]
[1726404544248,0.41467,2411.0,2410.7,1.62729176]
[1726404544448,0.41467,2411.0,2410.8,2.47313781]
[1726404544647,0.41467,2411.0,2410.8,0.4076]
[1726404545654,0.41467,2410.9,2410.8,0.4076]
[1726404545856,0.41467,2410.9,2410.6,15.55592171]
[1726404546048,0.41467,2410.9,2410.7,1.08448349]
[1726404546254,0.41467,2410.9,2410.6,15.01311344]
[1726404546863,4.03039,2410.8,2410.6,15.01311344]
[1726404547251,4.03039,2410.8,2410.6,13.92862995]
[1726404548155,0.41471,2410.7,2410.6,13.92862995]
[1726404549561,3.6157,2410.8,2410.6,13.92862995]
[1726404549562,4.0304,2410.8,2410.6,13.92862995]
[1726404550056,0.8226,2410.8,2410.6,13.92862995]
[1726404550361,4.0304,2410.8,2410.6,13.92862995]
[1726404551260,4.35312635,2410.8,2410.6,13.92862995]
[1726404551561,0.7918,2410.7,2410.6,13.92862995]
[1726404555361,1.20651,2410.7,2410.6,13.92862995]
[1726404555558,4.9398,2410.7,2410.1,4.6239]
[1726404555764,0.41474,2410.6,2410.2,0.7643]
[1726404556464,0.41474,2410.5,2410.2,0.7643]
[1726404556658,4.02624,2410.5,2410.2,0.7643]
[1726404557865,0.81844,2410.5,2410.2,0.7643]
[1726404563466,1.14520757,2410.5,2410.2,0.7643]
[1726404574067,1.14521757,2410.5,2410.2,0.7643]
[1726404575768,0.41476,2410.4,2410.2,0.7643]
[1726404576169,1.14521757,2410.5,2410.2,0.7643]
[1726404577070,0.41476,2410.4,2410.2,0.7643]
[1726404577773,0.41476,2410.4,2410.2,0.3734]
[1726404577972,0.795,2410.3,2410.2,0.3734]
[1726404580978,1.20978,2410.3,2410.2,0.3734]
[1726404581280,0.795,2410.3,2410.2,0.3734]
[1726404588180,0.795,2410.3,2410.2,3.28360636]
[1726404588685,0.795,2410.3,2410.2,2.19908484]
[1726404589783,0.795,2410.3,2410.2,3.28406743]
[1726404590182,0.795,2410.3,2410.2,2.19908484]
[1726404590582,0.795,2410.3,2410.2,3.8263766]
[1726404592589,0.795,2410.3,2410.2,3.82729666]
[1726404593481,0.795,2410.3,2410.2,4.47583749]
[1726404593783,0.795,2410.3,2410.2,3.82729666]
[1726404594183,0.795,2410.3,2410.2,4.47584524]
[1726404594688,0.795,2410.3,2410.2,4.47583384]
[1726404596586,0.795,2410.3,2410.2,3.82729666]
[1726404596788,0.795,2410.3,2410.2,4.47584394]
[1726404597291,0.795,2410.3,2410.2,2.64923904]
[1726404597493,0.795,2410.3,2410.2,4.4764307]
[1726404597887,0.795,2410.3,2410.2,3.82788342]
[1726404599187,0.795,2410.3,2410.2,4.47643848]
[1726404599989,0.795,2410.3,2410.2,3.82788342]
[1726404600195,0.795,2410.3,2410.2,4.47644226]
[1726404600994,0.795,2410.3,2410.2,4.47703087]
[1726404601192,1.20978,2410.3,2410.2,4.10363087]
[1726404601690,1.20978,2410.3,2410.2,1.0864371]
[1726404601994,5.35858,2410.3,2410.2,1.0864371]
[1726404602192,0.41479,2410.2,2410.1,1.0864371]
[1726404602394,0.80379,2410.2,2410.1,2.91460244]
[1726404603304,0.80379,2410.2,2410.1,1.0864371]
[1726404603496,0.80379,2410.2,2410.1,2.91426047]
[1726404603795,0.80379,2410.2,2410.1,3.31006047]
[1726404604005,0.80379,2410.2,2410.1,3.30984429]
[1726404604193,0.41479,2410.2,2410.1,3.30984429]
[1726404604894,0.41479,2410.2,2410.1,3.85091513]
[1726404605098,0.41479,2410.2,2410.1,3.3097712]
[1726404605399,0.41479,2410.2,2410.1,3.30948206]
[1726404605895,0.74997571,2410.2,2410.1,3.30938345]
[1726404606688,0.33518571,2410.2,2410.1,3.30938345]
[1726404606890,1.20979,2410.3,2410.1,3.30938345]
[1726404607197,1.20979,2410.3,2410.2,1.08604922]
[1726404607593,1.20979,2410.3,2410.1,1.48184922]
[1726404608600,1.54558999,2410.3,2410.1,1.48184922]
[1726404609193,1.54558999,2410.3,2410.1,1.08604922]
[1726404609388,0.41479,2410.2,2410.1,1.08604922]
[1726404611496,1.20979,2410.3,2410.1,1.08604922]
[1726404611796,3.2078,2410.4,2410.2,1.08604922]
[1726404611995,3.2078,2410.4,2410.2,2.26974922]
[1726404612199,3.2078,2410.4,2410.3,1.08604922]
[1726404613502,0.75333826,2410.5,2410.3,1.08604922]
[1726404614104,3.96113826,2410.5,2410.3,1.08604922]
[1726404615109,0.75333826,2410.5,2410.3,1.08604922]
[1726404616102,0.41474,2410.5,2410.3,1.08604922]
[1726404616702,4.7404525,2410.6,2410.3,1.08604922]
[1726404616905,3.9469225,2410.6,2410.3,1.08604922]
[1726404617108,0.81025,2410.5,2410.3,1.08604922]
[1726404619398,4.01805,2410.5,2410.3,1.08604922]
[1726404620308,0.81025,2410.5,2410.3,1.08604922]
[1726404621406,3.62256,2410.4,2410.2,1.49394922]
[1726404621606,0.41478,2410.3,2410.2,1.49371606]
[1726404621811,0.41478,2410.3,2410.2,3.32082774]
[1726404622104,0.41478,2410.3,2410.2,1.49371606]
[1726404622308,4.03397,2410.4,2410.2,3.32089035]
[1726404622497,4.03397,2410.4,2410.2,1.49371606]
[1726404623405,0.82617,2410.4,2410.2,1.49371606]
[1726404624500,0.81025,2410.5,2410.3,1.08581606]
[1726404624899,1.19283,2410.6,2410.3,1.08581606]
[1726404625099,1.19283,2410.6,2410.4,1.47291606]
[1726404625507,1.19283,2410.6,2410.5,0.3748]
[1726404626406,0.41474,2410.5,2410.4,1.08581606]
[1726404626707,3.62254,2410.5,2410.3,1.08581606]
[1726404627011,0.3928,2410.4,2410.3,1.08581606]
[1726404627215,0.3928,2410.4,2410.3,2.91243188]
[1726404627405,0.3928,2410.4,2410.3,2.91241013]
[1726404630507,0.3928,2410.4,2410.3,2.91236535]
[1726404630909,0.3928,2410.4,2410.3,1.0855268]
[1726404631209,0.3928,2410.4,2410.3,2.91215851]
[1726404631600,0.3928,2410.4,2410.3,1.0855268]
[1726404632203,0.3928,2410.4,2410.3,2.91207422]
[1726404632408,0.3928,2410.4,2410.3,1.0855268]
[1726404632609,0.3928,2410.4,2410.3,2.91205799]
[1726404633010,0.3928,2410.4,2410.3,2.91206812]
[1726404633209,0.3928,2410.4,2410.3,2.91207742]
[1726404633412,0.41475,2410.5,2410.3,2.91207742]
[1726404633611,0.7781,2410.6,2410.4,1.0855268]
[1726404634006,1.19283,2410.6,2410.5,0.3963]
[1726404634805,0.41473,2410.6,2410.5,0.3963]
[1726404644323,1.24619056,2410.7,2410.5,0.3963]
[1726404644324,1.66091056,2410.7,2410.5,0.3963]
[1726404644515,0.41473,2410.6,2410.5,0.3963]
[1726404647919,0.41473,2410.6,2410.3,1.4893268]
[1726404648115,3.5947,2410.5,2410.3,1.8635268]
[1726404648317,0.3944,2410.4,2410.3,1.8635268]
[1726404648516,0.7847,2410.4,2410.3,3.68940777]
[1726404648721,0.7847,2410.4,2410.3,1.0855268]
[1726404649024,1.19946,2410.4,2410.2,1.0855268]
[1726404649615,0.7847,2410.4,2410.2,1.0855268]
[1726404651425,0.7847,2410.4,2410.3,1.0855268]
[1726404652122,0.7847,2410.4,2410.2,1.0855268]
[1726404653123,0.7847,2410.4,2410.3,1.0855268]
[1726404654727,1.19946,2410.4,2410.3,1.0855268]
[1726404654918,1.19946,2410.4,2410.2,1.0855268]
[1726404655121,1.19946,2410.4,2410.3,1.0855268]
[1726404655619,0.7847,2410.4,2410.2,1.0855268]
[1726404656025,0.7847,2410.4,2410.3,1.0855268]
[1726404659225,1.118287,2410.4,2410.3,1.0855268]
[1726404659731,1.533047,2410.4,2410.3,1.0855268]
[1726404660621,1.118287,2410.4,2410.3,1.0855268]
[1726404661024,1.533047,2410.4,2410.2,1.0855268]
[1726404661535,1.118287,2410.4,2410.3,1.0855268]
[1726404662034,1.118287,2410.4,2410.2,1.0855268]
[1726404662421,1.533047,2410.4,2410.2,1.0855268]
[1726404663330,1.118287,2410.4,2410.2,1.0855268]
[1726404664020,1.118287,2410.4,2410.3,1.0855268]
[1726404664427,1.533047,2410.4,2410.3,1.0855268]
[1726404664629,0.41478,2410.3,2410.2,1.0855268]
[1726404664828,3.62258,2410.3,2410.1,1.4597268]
[1726404665029,0.4013,2410.2,2410.1,1.4597268]
[1726404665426,0.4013,2410.2,2410.1,1.0855268]
[1726404665828,0.81609,2410.2,2410.1,1.0855268]
[1726404666025,0.81609,2410.2,2410.0,1.4660268]
[1726404666232,0.7866,2410.1,2410.0,1.4660268]
[1726404666539,0.7866,2410.1,2410.0,0.3805]
[1726404666933,0.7866,2410.1,2409.9,1.0855268]
[1726404666934,0.41483,2410.0,2409.9,1.0855268]
[1726404667232,0.41483,2410.0,2409.7,1.0855268]
[1726404667233,0.41486,2409.8,2409.7,1.0855268]
[1726404667437,0.41486,2409.8,2409.6,1.0855268]
[1726404667734,0.4149,2409.6,2409.5,0.3805]
[1726404667944,0.4149,2409.6,2409.4,1.0855268]
[1726404668128,0.81843,2409.5,2409.3,1.0855268]
[1726404668328,3.2078,2409.4,2409.3,1.0855268]
[1726404669133,3.2078,2409.4,2409.2,1.4660268]
[1726404669433,0.4132,2409.3,2409.2,0.3805]
[1726404674244,3.2078,2409.4,2409.2,0.3805]
[1726404680036,0.3932,2409.6,2409.2,0.3805]
[1726404680237,0.80811,2409.6,2409.2,0.3805]
[1726404680845,0.3932,2409.6,2409.2,0.3805]
[1726404681845,0.80811,2409.6,2409.2,0.3805]
[1726404682554,3.62269,2409.7,2409.2,0.3805]
[1726404682750,3.62269,2409.7,2409.2,0.79545]
[1726404682951,3.62269,2409.7,2409.3,4.66255658]
[1726404682952,0.41489,2409.7,2409.3,4.66255658]
[1726404688054,0.41488,2409.7,2409.3,4.66255658]
[1726404688256,1.28707,2409.8,2409.3,4.66255658]
[1726404688462,0.48,2409.8,2409.4,3.2078]
[1726404688658,0.48,2409.8,2409.5,0.7851]
[1726404688863,0.383,2409.8,2409.5,5.14163575]
[1726404689167,0.383,2409.8,2409.6,0.3735]
[1726404690366,0.79786,2409.8,2409.6,0.3735]
[1726404693867,0.3735,2409.7,2409.6,0.3735]
[1726404697769,0.383,2409.8,2409.6,0.3735]
[1726404702870,0.3859,2409.7,2409.6,0.3735]
[1726404705074,0.3859,2409.7,2409.3,1.4701268]
[1726404705275,0.3928,2409.6,2409.4,0.3812]
[1726404705471,0.4096,2409.5,2409.4,0.3812]
[1726404707276,0.4096,2409.5,2409.4,1.4667268]
[1726404707575,0.4096,2409.5,2409.4,0.3812]
[1726404708170,0.4096,2409.5,2409.4,1.4667268]
[1726404710279,0.4096,2409.5,2409.4,3.29127072]
[1726404710474,0.4096,2409.5,2409.4,3.29127632]
[1726404710682,0.4096,2409.5,2409.4,1.4667268]
[1726404711068,0.4096,2409.5,2409.4,3.29126346]
[1726404711279,0.4096,2409.5,2409.4,3.29126805]
[1726404712178,0.4096,2409.5,2409.4,3.83303301]
[1726404713375,0.3928,2409.6,2409.4,3.83303301]
[1726404713574,0.3928,2409.6,2409.5,1.08480022]
[1726404719673,0.3928,2409.6,2409.5,2.91067639]
[1726404719978,0.3928,2409.6,2409.5,1.08480022]
[1726404721381,0.3928,2409.6,2409.5,2.91110013]
[1726404721680,0.3928,2409.6,2409.5,2.91109794]
[1726404721885,0.3928,2409.6,2409.5,1.08480022]
[1726404722082,0.3928,2409.6,2409.5,2.91114709]
[1726404722288,0.3928,2409.6,2409.5,1.08480022]
[1726404722483,0.3928,2409.6,2409.5,2.91155712]
[1726404723285,0.3928,2409.6,2409.5,3.45404866]
[1726404723787,0.3928,2409.6,2409.5,1.8267569]
[1726404724086,0.3928,2409.6,2409.4,1.46720083]
[1726404724281,0.4015,2409.5,2409.4,2.00849176]
[1726404724488,0.4015,2409.5,2409.4,3.29545893]
[1726404724688,0.4015,2409.5,2409.4,3.29548114]
[1726404724888,0.4015,2409.5,2409.4,3.29546895]
[1726404725088,0.4015,2409.5,2409.4,3.8363442]
[1726404725886,0.4015,2409.5,2409.4,4.48508638]
[1726404726083,0.4015,2409.5,2409.4,3.8363442]
[1726404726282,0.4015,2409.5,2409.4,3.83660752]
[1726404727392,0.4015,2409.5,2409.4,4.48535403]
[1726404727593,0.4015,2409.5,2409.4,3.83660752]
[1726404729392,0.4015,2409.5,2409.4,4.48536029]
[1726404730090,0.4015,2409.5,2409.4,3.83660752]
[1726404730989,0.4015,2409.5,2409.4,4.48556505]
[1726404731585,0.4015,2409.5,2409.4,2.85827329]
[1726404731794,3.2078,2409.6,2409.4,2.85826345]
[1726404732099,3.2078,2409.6,2409.5,3.45825423]
[1726404733801,1.92248083,2409.7,2409.5,3.45825423]
[1726404733995,1.92248083,2409.7,2409.6,1.08671347]
[1726404734399,6.07208083,2409.7,2409.6,1.08671347]
[1726404734988,5.65720083,2409.7,2409.6,1.08671347]
[1726404736599,1.50760083,2409.7,2409.6,1.08671347]
[1726404737297,1.50760083,2409.7,2409.6,2.91521171]
[1726404740499,1.50760083,2409.7,2409.6,2.9154564]
[1726404741304,1.11780083,2409.7,2409.6,2.9154564]
[1726404741605,0.793,2409.7,2409.6,2.9154564]
[1726404742402,3.2078,2409.8,2409.6,3.4586699]
[1726404742605,3.5951,2409.8,2409.7,1.08683482]
[1726404742900,3.5951,2409.8,2409.7,1.47683482]
[1726404742901,4.00996,2409.8,2409.7,1.47683482]
[1726404743205,3.5951,2409.8,2409.7,1.47683482]
[1726404743610,3.5951,2409.8,2409.7,1.08683482]
[1726404743899,3.5951,2409.8,2409.5,2.01252697]
[1726404743900,3.5951,2409.8,2409.6,1.08683482]
[1726404744103,0.3873,2409.8,2409.6,1.08683482]
[1726404744315,3.5951,2409.8,2409.6,1.08683482]
[1726404744501,0.3873,2409.8,2409.6,1.08683482]
[1726404744705,3.5951,2409.8,2409.6,1.08683482]
[1726404746605,4.00997,2409.8,2409.6,1.08683482]
[1726404747207,0.41488,2409.7,2409.6,1.08683482]
[1726404748106,4.00997,2409.8,2409.6,1.08683482]
[1726404751102,0.80217,2409.8,2409.6,1.08683482]
[1726404751302,4.00997,2409.8,2409.6,1.08683482]
[1726404752210,0.80217,2409.8,2409.6,1.08683482]
[1726404752403,4.00997,2409.8,2409.6,1.08683482]
[1726404752803,0.80217,2409.8,2409.6,1.08683482]
[1726404753203,4.56448,2409.7,2409.6,0.34993482]
[1726404753507,4.56448,2409.7,2409.6,0.11651998]
[1726404753808,10.56448,2409.7,2409.6,0.11651998]
[1726404755711,0.4149,2409.6,2409.5,1.62992697]
[1726404755909,5.35,2409.6,2409.5,1.62992697]
[1726404756714,5.35,2409.6,2409.2,0.7777]
[1726404756916,0.79642,2409.5,2409.2,0.7777]
[1726404757412,0.3815,2409.5,2409.2,0.7777]
[1726404759112,0.79642,2409.5,2409.2,0.7777]
[1726404759515,4.00422,2409.5,2409.2,0.7777]
[1726404760716,4.00422,2409.5,2409.3,1.82464745]
[1726404760909,4.00422,2409.5,2409.2,2.40807403]
[1726404765812,4.00422,2409.5,2409.3,3.45495814]
[1726404766013,4.00422,2409.5,2409.3,1.63037403]
[1726404767721,0.79642,2409.5,2409.3,1.63037403]
[1726404770014,0.41492,2409.5,2409.3,1.63037403]
[1726404770317,0.41492,2409.5,2409.4,0.3945]
[1726404771826,0.41492,2409.5,2409.3,1.63037403]
[1726404773024,0.41492,2409.5,2409.2,2.80257403]
[1726404773221,0.41492,2409.5,2409.3,3.45485061]
[1726404773526,0.41492,2409.5,2409.2,2.80257403]
[1726404773825,0.41492,2409.5,2409.3,1.82446147]
[1726404774027,0.41492,2409.5,2409.3,1.63037403]
[1726404775123,0.41492,2409.5,2409.2,2.80257403]
[1726404775433,0.41492,2409.5,2409.3,3.45467671]
[1726404775723,0.41492,2409.5,2409.3,1.63037403]
[1726404776721,0.72828411,2409.6,2409.2,2.80257403]
[1726404776924,0.32468411,2409.6,2409.3,3.45459578]
[1726404777123,0.4149,2409.6,2409.3,1.63037403]
[1726404779131,0.4149,2409.6,2409.2,3.34603204]
[1726404779132,0.41493,2409.4,2409.2,2.01417403]
[1726404779624,0.79543,2409.4,2409.2,2.01417403]
[1726404784133,1.12410948,2409.4,2409.2,2.01417403]
[1726404788837,1.12410948,2409.4,2409.3,1.82539473]
[1726404789139,1.12410948,2409.4,2409.3,1.82541837]
[1726404789340,1.12410948,2409.4,2409.2,2.01417403]
[1726404790340,1.12410948,2409.4,2409.3,1.8256672]
[1726404790746,1.12410948,2409.4,2409.2,2.01417403]
[1726404791038,0.3805,2409.4,2409.3,1.82565855]
[1726404791636,0.79543,2409.4,2409.3,1.82565855]
[1726404792535,0.79543,2409.4,2409.3,3.45603258]
[1726404793438,0.809,2409.5,2409.3,3.45603258]
[1726404793646,4.02621,2409.6,2409.4,1.82588992]
[1726404793835,4.02621,2409.6,2409.4,0.3762]
[1726404794031,4.0262,2409.6,2409.5,0.3924]
[1726404795338,4.0262,2409.6,2409.5,2.21833493]
[1726404795538,4.0262,2409.6,2409.5,0.3924]
[1726404797338,0.097,2409.7,2409.5,0.3924]
[1726404797547,3.2078,2409.9,2409.6,7.02713525]
[1726404797744,3.2078,2409.9,2409.7,3.45591346]
[1726404797948,3.2078,2409.9,2409.8,2.2294733]
[1726404798247,3.2078,2409.9,2409.8,2.6343733]
[1726404798752,3.2078,2409.9,2409.8,0.8089]
[1726404800042,0.7722,2410.2,2409.8,2.63292563]
[1726404800237,0.7722,2410.2,2409.8,2.43897349]
[1726404800238,1.1802,2410.2,2409.8,2.43897349]
[1726404800752,0.41484,2410.0,2409.8,0.8089]
[1726404813355,3.62262,2410.1,2409.8,0.8089]
[1726404813550,3.2078,2410.1,2409.8,0.8089]
[1726404813750,3.62261,2410.1,2409.9,0.3853]
[1726404813950,0.41481,2410.1,2409.9,0.3853]
[1726404828266,0.41481,2410.1,2409.8,0.8089]
[1726404832759,0.41481,2410.1,2409.8,4.0167]
[1726404836673,0.41481,2410.1,2409.8,0.8089]
[1726404837573,0.41481,2410.1,2409.8,5.64158752]
[1726404838269,0.41481,2410.1,2409.8,2.43378752]
[1726404838472,0.41481,2410.1,2409.8,5.64158752]
[1726404839569,0.41481,2410.1,2409.9,1.82163494]
[1726404839772,0.41481,2410.1,2409.8,5.64158752]
[1726404839971,0.41481,2410.1,2409.9,1.82163403]
[1726404840164,0.41481,2410.1,2409.8,5.64158752]
[1726404840473,0.41481,2410.1,2409.9,1.82200738]
[1726404840674,0.41481,2410.1,2409.8,5.64158752]
[1726404840976,0.41481,2410.1,2409.9,1.82202065]
[1726404841172,0.41481,2410.1,2409.8,5.64158752]
[1726404841471,0.41481,2410.1,2409.9,3.44692141]
[1726404841681,0.41481,2410.1,2409.9,1.62488752]
[1726404842566,0.41481,2410.1,2410.0,1.82311065]
[1726404842965,0.41481,2410.1,2409.9,1.62488752]
[1726404843168,0.41481,2410.1,2409.8,2.02978752]
[1726404843169,3.62261,2410.1,2409.8,2.02978752]
[1726404843367,3.62261,2410.1,2409.9,1.82332964]
[1726404843572,3.62261,2410.1,2409.9,1.62488752]
[1726404844481,0.41481,2410.1,2409.9,1.62488752]
[1726404844669,3.62261,2410.1,2409.9,1.62488752]
[1726404844866,0.41481,2410.1,2409.9,1.62488752]
[1726404845582,3.62261,2410.1,2409.9,1.62488752]
[1726404846979,0.41481,2410.1,2409.9,1.62488752]
[1726404848876,0.41481,2410.1,2410.0,1.82414962]
[1726404849078,1.50914582,2410.2,2410.0,1.82414962]
[1726404849079,1.92394582,2410.2,2410.0,1.82414962]
[1726404849279,1.92394582,2410.2,2409.9,1.62488752]
[1726404849474,1.92394582,2410.2,2410.0,1.82416059]
[1726404849676,1.92394582,2410.2,2409.9,1.62488752]
[1726404849878,1.92394582,2410.2,2410.0,1.82418599]
[1726404850077,1.92394582,2410.2,2409.9,1.62488752]
[1726404850277,1.92394582,2410.2,2410.0,1.82419774]
[1726404850477,1.92394582,2410.2,2409.9,1.62488752]
[1726404850678,1.92394582,2410.2,2410.0,1.82420754]
[1726404850879,1.92394582,2410.2,2409.9,1.62488752]
[1726404851076,1.92394582,2410.2,2410.0,1.82418785]
[1726404851277,1.92394582,2410.2,2409.9,1.62488752]
[1726404851483,1.92394582,2410.2,2410.0,1.82420744]
[1726404851686,1.92394582,2410.2,2409.9,1.62488752]
[1726404851877,1.92394582,2410.2,2410.0,1.82429968]
[1726404852074,1.92394582,2410.2,2409.9,1.62488752]
[1726404852075,1.50914582,2410.2,2409.9,1.62488752]
[1726404852375,0.41481,2410.1,2409.9,1.62488752]
[1726404859997,0.41481,2410.1,2410.0,1.82448415]
[1726404860188,0.41481,2410.1,2410.0,1.82449158]
[1726404861097,0.41481,2410.1,2409.9,1.62488752]
[1726404862290,0.41481,2410.1,2410.0,1.82450622]
[1726404863084,0.41481,2410.1,2409.9,1.62488752]
[1726404864387,0.41481,2410.1,2410.0,1.82449705]
[1726404864589,0.41481,2410.1,2410.0,1.82448812]
[1726404865883,0.41481,2410.1,2410.0,1.82450315]
[1726404866085,0.41481,2410.1,2410.0,1.82450625]
[1726404866893,0.41481,2410.1,2409.9,1.62488752]
[1726404868499,0.41481,2410.1,2410.0,1.82451269]
[1726404869301,0.41481,2410.1,2409.9,1.62488752]
[1726404872002,5.13174582,2410.2,2409.9,1.62488752]
[1726404872197,5.13174582,2410.2,2410.0,1.82450186]
[1726404872403,5.13174582,2410.2,2409.9,1.62488752]
[1726404872606,5.13174582,2410.2,2410.0,1.82448768]
[1726404872804,0.41481,2410.1,2409.9,1.62488752]
[1726404873108,0.41481,2410.1,2410.0,1.82449768]
[1726404873303,0.41481,2410.1,2410.0,2.91055109]
[1726404873499,0.41481,2410.1,2410.0,2.91058604]
[1726404873704,0.41481,2410.1,2410.0,1.08605341]
[1726404873904,0.41481,2410.1,2410.0,2.91055798]
[1726404874299,0.41481,2410.1,2410.0,2.91053769]
[1726404877307,0.41481,2410.1,2410.0,1.08605341]
[1726404877495,0.41481,2410.1,2410.0,2.91052945]
[1726404879311,0.41481,2410.1,2410.0,2.91051644]
[1726404879611,0.41481,2410.1,2410.0,2.91053332]
[1726404879905,0.41481,2410.1,2410.0,1.82447604]
[1726404880111,0.41481,2410.1,2410.0,2.91054436]
[1726404880311,0.41481,2410.1,2410.0,2.91053526]
[1726404880511,0.41481,2410.1,2410.0,2.91064636]
[1726404880717,0.41481,2410.1,2410.0,1.08605922]
[1726404881009,0.41481,2410.1,2410.0,2.9106702]
[1726404881210,0.41481,2410.1,2410.0,1.08605922]
[1726404881614,0.41481,2410.1,2410.0,2.91067511]
[1726404881808,0.41481,2410.1,2410.0,2.91070638]
[1726404882004,0.41481,2410.1,2410.0,1.08605922]
[1726404882311,0.41481,2410.1,2410.0,2.91069833]
[1726404882611,0.41481,2410.1,2410.0,3.44952663]
[1726404883307,0.41481,2410.1,2410.0,1.82461602]
[1726404883809,0.41481,2410.1,2410.0,3.44950354]
[1726404887014,0.41481,2410.1,2410.0,3.4494573]
[1726404888506,0.41481,2410.1,2410.0,4.09803325]
[1726404889018,0.41481,2410.1,2410.0,4.51053325]
[1726404889216,0.41481,2410.1,2410.0,5.03341817]
[1726404889416,0.41481,2410.1,2410.0,4.51455436]
[1726404889617,1.15174582,2410.2,2410.0,4.51455436]
[1726404889817,1.15174582,2410.2,2410.1,2.91054372]
[1726404890013,1.15174582,2410.2,2410.1,3.32021879]
[1726404890221,1.15174582,2410.2,2410.1,3.86317841]
[1726404890418,1.15174582,2410.2,2410.1,3.32015984]
[1726404891513,1.15174582,2410.2,2410.1,3.70885984]
[1726404891724,0.8228,2410.2,2410.1,3.70885984]
[1726404891923,0.408,2410.2,2410.1,3.70885984]
[1726404892222,0.41478,2410.3,2410.1,8.40067841]
[1726404892418,0.33537041,2410.4,2410.2,2.91020758]
[1726404892618,0.41477,2410.4,2410.2,1.0856378]
[1726404893013,0.41477,2410.4,2410.2,2.71454643]
[1726404893214,0.41478,2410.3,2410.2,1.08544515]
[1726404893414,0.41478,2410.3,2410.2,2.90904656]
[1726404895238,0.41478,2410.3,2410.2,1.08544515]
[1726404895522,0.79905,2410.5,2410.2,6.6599369]
[1726404895721,0.79905,2410.5,2410.3,1.47978603]
[1726404896126,0.79905,2410.5,2410.4,0.3859]
[1726404897931,0.41475,2410.5,2410.4,0.3859]
[1726404898127,0.82475,2410.5,2410.4,0.3859]
[1726404899625,0.82475,2410.5,2410.2,1.08508603]
[1726404899820,0.82475,2410.5,2410.2,1.49408603]
[1726404900131,4.03255,2410.5,2410.2,1.49408603]
[1726404901622,0.82475,2410.5,2410.2,1.49408603]
[1726404901821,0.41476,2410.4,2410.2,1.49408603]
[1726404902018,0.82878,2410.3,2410.2,1.08508603]
[1726404902222,1.20578,2410.3,2410.1,1.08508603]
[1726404902421,0.3757,2410.2,2410.1,1.08508603]
[1726404902826,0.79049,2410.2,2410.1,1.08508603]
[1726404903032,0.79049,2410.2,2410.0,1.49408603]
[1726404903237,3.9983,2410.2,2410.0,1.49408603]
[1726404903432,0.7905,2410.2,2410.0,1.49408603]
[1726404903933,3.9983,2410.2,2410.0,1.49408603]
[1726404904933,0.7905,2410.2,2410.0,1.49408603]
[1726404906334,0.7905,2410.2,2410.1,1.08508603]
[1726404908030,1.1187607,2410.2,2410.1,1.08508603]
[1726404908530,1.1187607,2410.2,2410.0,2.03790863]
[1726404908531,4.3265607,2410.2,2410.0,1.08508603]
[1726404916148,1.1187607,2410.2,2410.0,1.08508603]
[1726404917645,1.1187607,2410.2,2410.1,1.08508603]
[1726404917953,1.1187607,2410.2,2410.0,1.08508603]
[1726404919451,1.1187607,2410.2,2410.1,1.08508603]
[1726404919650,1.1187607,2410.2,2410.0,1.08508603]
[1726404921143,1.1187607,2410.2,2410.1,1.08508603]
[1726404921349,1.1187607,2410.2,2410.0,1.08508603]
[1726404921946,1.1187607,2410.2,2410.1,1.08508603]
[1726404923244,1.1187607,2410.2,2409.9,1.62890863]
[1726404923245,1.1187607,2410.2,2410.0,1.08508603]
[1726404923748,1.1187607,2410.2,2410.1,1.08508603]
[1726404924254,1.1187607,2410.2,2410.0,1.08508603]
[1726404924755,3.2078,2410.1,2410.0,1.08508603]
[1726404924947,3.62261,2410.1,2410.0,2.90796754]
[1726404925149,3.62261,2410.1,2409.9,1.08508603]
[1726404925343,0.3779,2410.0,2409.9,1.08508603]
[1726404925949,0.784,2410.0,2409.9,1.08508603]
[1726404932661,0.3779,2410.0,2409.9,1.08508603]
[1726404933562,4.3265607,2410.2,2409.9,1.08508603]
[1726404933752,0.41481,2410.1,2410.0,0.3954]
[1726404937454,0.82711,2410.1,2410.0,0.3954]
[1726404940857,0.82711,2410.1,2409.9,1.08508603]
[1726404950362,0.82711,2410.1,2410.0,1.08508603]
[1726404951765,0.82711,2410.1,2409.9,1.08508603]
[1726404951970,0.82711,2410.1,2410.0,1.08508603]
[1726404953265,0.41481,2410.2,2410.0,1.08508603]
[1726404953469,0.097,2410.5,2410.1,0.3959]
[1726404953659,0.41475,2410.5,2410.2,1.08508603]
[1726404954067,0.41475,2410.5,2410.3,1.47078603]
[1726404954464,0.41475,2410.5,2410.4,0.3927]
[1726404970771,0.41475,2410.5,2410.1,1.88908603]
[1726404970974,1.58756,2410.4,2410.2,0.3956]
[1726404972280,1.1728,2410.4,2410.2,0.3956]